[Event "January 9 Early 2024"]
[Site "https://www.chess.com"]
[Date "2024.01.11"]
[Round "8"]
[White "Kuzubov, Yuriy"]
[Black "Keymer, Vincent"]
[Result "0-1"]
[Board "218"]
[TimeControl "180+1"]
[WhiteFideId "14112906"]
[BlackFideId "12940690"]
[WhiteElo "2865"]
[BlackElo "3030"]
[WhiteTeam "UKR"]
[BlackTeam "GER"]
[WhiteClock "0:00:03"]
[BlackClock "0:00:05"]

1. d4 {[%clk 0:03:00]}  Nf6 {[%clk 0:02:59]} 2. Nf3 {[%clk 0:03:01]}  e6 {[%clk 0:02:59]} 3. c4 {[%clk 0:03:02]}  b6 {[%clk 0:02:59]} 4. g3 {[%clk 0:03:02]}  Ba6 {[%clk 0:02:59]} 5. Qc2 {[%clk 0:03:02]}  Bb7 {[%clk 0:02:56]} 6. Bg2 {[%clk 0:03:02]}  Bb4+ {[%clk 0:02:56]} 7. Bd2 {[%clk 0:02:52]}  a5 {[%clk 0:02:56]} 8. Nc3 {[%clk 0:02:46]}  O-O {[%clk 0:02:56]} 9. Bg5 {[%clk 0:02:41]}  Be4 {[%clk 0:02:22]} 10. Qd2 {[%clk 0:02:37]}  Bxc3 {[%clk 0:02:13]} 11. bxc3 {[%clk 0:02:23]}  h6 {[%clk 0:02:02]} 12. Bxf6 {[%clk 0:02:22]}  Qxf6 {[%clk 0:02:02]} 13. O-O {[%clk 0:02:22]}  d6 {[%clk 0:01:58]} 14. Ne1 {[%clk 0:02:18]}  Qg6 {[%clk 0:01:52]} 15. Nd3 {[%clk 0:02:09]}  Bxg2 {[%clk 0:01:50]} 16. Kxg2 {[%clk 0:02:09]}  Qe4+ {[%clk 0:01:46]} 17. f3 {[%clk 0:02:08]}  Qc6 {[%clk 0:01:47]} 18. Nb2 {[%clk 0:02:01]}  Nd7 {[%clk 0:01:41]} 19. e4 {[%clk 0:01:53]}  e5 {[%clk 0:01:34]} 20. Qd3 {[%clk 0:01:22]}  a4 {[%clk 0:01:14]} 21. Nd1 {[%clk 0:01:19]}  a3 {[%clk 0:00:59]} 22. Ne3 {[%clk 0:01:18]}  Ra4 {[%clk 0:00:58]} 23. Rab1 {[%clk 0:01:12]}  Re8 {[%clk 0:00:49]} 24. Rfd1 {[%clk 0:00:58]}  g6 {[%clk 0:00:47]} 25. h4 {[%clk 0:00:43]}  h5 {[%clk 0:00:45]} 26. Rb4 {[%clk 0:00:36]}  Rxb4 {[%clk 0:00:24]} 27. cxb4 {[%clk 0:00:36]}  Qa4 {[%clk 0:00:25]} 28. Rb1 {[%clk 0:00:29]}  c6 {[%clk 0:00:12]} 29. d5 {[%clk 0:00:26]}  c5 {[%clk 0:00:11]} 30. b5 {[%clk 0:00:24]}  Ra8 {[%clk 0:00:09]} 31. Rb3 {[%clk 0:00:23]}  Nf6 {[%clk 0:00:07]} 32. Nc2 {[%clk 0:00:22]}  Qa7 {[%clk 0:00:04]} 33. Rxa3 {[%clk 0:00:22]}  Qb7 {[%clk 0:00:04]} 34. Rxa8+ {[%clk 0:00:21]}  Qxa8 {[%clk 0:00:05]} 35. Qa3 {[%clk 0:00:20]}  Qb8 {[%clk 0:00:06]} 36. Qa6 {[%clk 0:00:19]}  Ne8 {[%clk 0:00:06]} 37. Ne3 {[%clk 0:00:16]}  Kg7 {[%clk 0:00:06]} 38. Nd1 {[%clk 0:00:16]}  Nc7 {[%clk 0:00:05]} 39. Qa3 {[%clk 0:00:16]}  Ne8 {[%clk 0:00:06]} 40. Qb3 {[%clk 0:00:15]}  f5 {[%clk 0:00:06]} 41. exf5 {[%clk 0:00:15]}  gxf5 {[%clk 0:00:06]} 42. Qc2 {[%clk 0:00:15]}  Qc8 {[%clk 0:00:05]} 43. Ne3 {[%clk 0:00:15]}  Kf6 {[%clk 0:00:06]} 44. g4 {[%clk 0:00:15]}  hxg4 {[%clk 0:00:04]} 45. fxg4 {[%clk 0:00:16]}  fxg4 {[%clk 0:00:03]} 46. Qh7 {[%clk 0:00:15]}  Ng7 {[%clk 0:00:02]} 47. Qh6+ {[%clk 0:00:15]}  Kf7 {[%clk 0:00:03]} 48. Qxd6 {[%clk 0:00:15]}  Qa8 {[%clk 0:00:02]} 49. h5 {[%clk 0:00:14]}  Qxa2+ {[%clk 0:00:02]} 50. Kg3 {[%clk 0:00:14]}  Qb3 {[%clk 0:00:02]} 51. Qg6+ {[%clk 0:00:13]}  Kf8 {[%clk 0:00:02]} 52. Qf6+ {[%clk 0:00:12]}  Kg8 {[%clk 0:00:03]} 53. Qxe5 {[%clk 0:00:13]}  Nf5+ {[%clk 0:00:03]} 54. Qxf5 {[%clk 0:00:13]}  Qxe3+ {[%clk 0:00:04]} 55. Kxg4 {[%clk 0:00:13]}  Qe2+ {[%clk 0:00:04]} 56. Qf3 {[%clk 0:00:13]}  Qxc4+ {[%clk 0:00:04]} 57. Kf5 {[%clk 0:00:13]}  Qxb5 {[%clk 0:00:04]} 58. d6 {[%clk 0:00:13]}  Qd7+ {[%clk 0:00:03]} 59. Ke5 {[%clk 0:00:13]}  Qe8+ {[%clk 0:00:04]} 60. Kf5 {[%clk 0:00:08]}  Qf8+ {[%clk 0:00:04]} 61. Kg4 {[%clk 0:00:09]}  Qxd6 {[%clk 0:00:05]} 62. Qb7 {[%clk 0:00:07]}  Qe6+ {[%clk 0:00:05]} 63. Kg3 {[%clk 0:00:06]}  Qf6 {[%clk 0:00:04]} 64. Qa7 {[%clk 0:00:04]}  Qg7+ {[%clk 0:00:04]} 65. Qxg7+ {[%clk 0:00:03]}  Kxg7 {[%clk 0:00:05]} 0-1

[Event "January 9 Early 2024"]
[Site "https://www.chess.com"]
[Date "2024.01.11"]
[Round "8"]
[White "Bardyk, Artem"]
[Black "Chigaev, Maksim"]
[Result "0-1"]
[Board "219"]
[TimeControl "180+1"]
[WhiteFideId "34349979"]
[BlackFideId "4108116"]
[WhiteElo "2773"]
[BlackElo "2968"]
[WhiteTeam "RUS"]
[BlackTeam "ESP"]
[WhiteClock "0:00:03"]
[BlackClock "0:00:05"]

1. e4 {[%clk 0:02:58]}  e5 {[%clk 0:02:59]} 2. Nf3 {[%clk 0:02:57]}  Nc6 {[%clk 0:02:59]} 3. Bc4 {[%clk 0:02:57]}  Nf6 {[%clk 0:02:58]} 4. d3 {[%clk 0:02:57]}  Bc5 {[%clk 0:02:59]} 5. Nc3 {[%clk 0:02:56]}  d6 {[%clk 0:02:57]} 6. Bg5 {[%clk 0:02:57]}  h6 {[%clk 0:02:57]} 7. Bxf6 {[%clk 0:02:57]}  Qxf6 {[%clk 0:02:57]} 8. Nd5 {[%clk 0:02:57]}  Qd8 {[%clk 0:02:58]} 9. c3 {[%clk 0:02:58]}  a6 {[%clk 0:02:54]} 10. d4 {[%clk 0:02:57]}  Ba7 {[%clk 0:02:55]} 11. dxe5 {[%clk 0:02:57]}  dxe5 {[%clk 0:02:53]} 12. Qe2 {[%clk 0:02:55]}  O-O {[%clk 0:02:22]} 13. O-O-O {[%clk 0:02:54]}  Be6 {[%clk 0:02:16]} 14. Nb6 {[%clk 0:02:47]}  Nd4 {[%clk 0:01:24]} 15. Nxd4 {[%clk 0:02:25]}  Bxc4 {[%clk 0:01:19]} 16. Qxc4 {[%clk 0:01:59]}  Qg5+ {[%clk 0:01:18]} 17. Kb1 {[%clk 0:01:59]}  Bxb6 {[%clk 0:01:18]} 18. Nf3 {[%clk 0:01:44]}  Qf4 {[%clk 0:01:03]} 19. Rd5 {[%clk 0:01:39]}  Rad8 {[%clk 0:00:56]} 20. Rhd1 {[%clk 0:01:33]}  Rxd5 {[%clk 0:00:55]} 21. Rxd5 {[%clk 0:01:34]}  Qg4 {[%clk 0:00:55]} 22. Nxe5 {[%clk 0:01:13]}  Qxg2 {[%clk 0:00:52]} 23. Nd7 {[%clk 0:00:41]}  Re8 {[%clk 0:00:41]} 24. a4 {[%clk 0:00:28]}  Qxe4+ {[%clk 0:00:31]} 25. Qxe4 {[%clk 0:00:27]}  Rxe4 {[%clk 0:00:32]} 26. Nxb6 {[%clk 0:00:24]}  cxb6 {[%clk 0:00:32]} 27. b4 {[%clk 0:00:18]}  Re2 {[%clk 0:00:28]} 28. Rd8+ {[%clk 0:00:11]}  Kh7 {[%clk 0:00:27]} 29. Rd7 {[%clk 0:00:12]}  Rxf2 {[%clk 0:00:25]} 30. Rxb7 {[%clk 0:00:12]}  g5 {[%clk 0:00:24]} 31. b5 {[%clk 0:00:07]}  axb5 {[%clk 0:00:20]} 32. axb5 {[%clk 0:00:08]}  Rf6 {[%clk 0:00:19]} 33. Kc2 {[%clk 0:00:08]}  h5 {[%clk 0:00:19]} 34. Rd7 {[%clk 0:00:06]}  g4 {[%clk 0:00:18]} 35. Kd3 {[%clk 0:00:06]}  Kg6 {[%clk 0:00:15]} 36. Ke3 {[%clk 0:00:04]}  h4 {[%clk 0:00:12]} 37. Rd4 {[%clk 0:00:04]}  Rf3+ {[%clk 0:00:11]} 38. Ke2 {[%clk 0:00:03]}  f5 {[%clk 0:00:11]} 39. Rd6+ {[%clk 0:00:03]}  Kg5 {[%clk 0:00:12]} 40. Rxb6 {[%clk 0:00:04]}  Rxc3 {[%clk 0:00:12]} 41. Kf2 {[%clk 0:00:02]}  Kf4 {[%clk 0:00:11]} 42. Rc6 {[%clk 0:00:01]}  Rb3 {[%clk 0:00:09]} 43. Rc4+ {[%clk 0:00:02]}  Kg5 {[%clk 0:00:09]} 44. Rc5 {[%clk 0:00:02]}  Rb2+ {[%clk 0:00:08]} 45. Kg1 {[%clk 0:00:02]}  h3 {[%clk 0:00:06]} 46. Rd5 {[%clk 0:00:03]}  Rb3 {[%clk 0:00:07]} 47. Rc5 {[%clk 0:00:02]}  Kf4 {[%clk 0:00:07]} 48. Kf2 {[%clk 0:00:02]}  Rb2+ {[%clk 0:00:07]} 49. Kg1 {[%clk 0:00:02]}  Ke4 {[%clk 0:00:08]} 50. Rc4+ {[%clk 0:00:02]}  Kf3 {[%clk 0:00:05]} 51. Rc3+ {[%clk 0:00:02]}  Ke2 {[%clk 0:00:05]} 52. Rc1 {[%clk 0:00:01]}  Rxb5 {[%clk 0:00:05]} 53. Rf1 {[%clk 0:00:01]}  Ke3 {[%clk 0:00:05]} 54. Re1+ {[%clk 0:00:01]}  Kf4 {[%clk 0:00:05]} 55. Rf1+ {[%clk 0:00:01]}  Kg5 {[%clk 0:00:06]} 56. Ra1 {[%clk 0:00:02]}  Re5 {[%clk 0:00:06]} 57. Ra8 {[%clk 0:00:03]}  Re2 {[%clk 0:00:06]} 58. Rb8 {[%clk 0:00:02]}  Kf4 {[%clk 0:00:07]} 59. Ra8 {[%clk 0:00:03]}  Rg2+ {[%clk 0:00:06]} 60. Kh1 {[%clk 0:00:03]}  Rd2 {[%clk 0:00:05]} 61. Kg1 {[%clk 0:00:03]}  Ke3 {[%clk 0:00:05]} 62. Ra3+ {[%clk 0:00:03]}  Rd3 {[%clk 0:00:05]} 63. Ra8 {[%clk 0:00:03]}  Rd1# {[%clk 0:00:05]} 0-1

[Event "January 9 Early 2024"]
[Site "https://www.chess.com"]
[Date "2024.01.11"]
[Round "8"]
[White "Dominguez Perez, Leinier"]
[Black "Aronian, Levon"]
[Result "1/2-1/2"]
[Board "221"]
[TimeControl "180+1"]
[WhiteFideId "3503240"]
[BlackFideId "13300474"]
[WhiteElo "2978"]
[BlackElo "3093"]
[WhiteTeam "USA"]
[BlackTeam "USA"]
[WhiteClock "0:00:04"]
[BlackClock "0:00:09"]

1. e4 {[%clk 0:03:00]}  c5 {[%clk 0:02:59]} 2. Nf3 {[%clk 0:03:01]}  e6 {[%clk 0:03:00]} 3. d4 {[%clk 0:03:01]}  cxd4 {[%clk 0:03:01]} 4. Nxd4 {[%clk 0:03:02]}  Nc6 {[%clk 0:03:01]} 5. Nc3 {[%clk 0:03:02]}  Qc7 {[%clk 0:03:02]} 6. Be2 {[%clk 0:03:02]}  Nf6 {[%clk 0:02:59]} 7. Ndb5 {[%clk 0:03:00]}  Qb8 {[%clk 0:02:59]} 8. f4 {[%clk 0:03:01]}  a6 {[%clk 0:02:53]} 9. e5 {[%clk 0:03:00]}  axb5 {[%clk 0:02:53]} 10. exf6 {[%clk 0:03:01]}  b4 {[%clk 0:02:54]} 11. fxg7 {[%clk 0:02:58]}  Bxg7 {[%clk 0:02:54]} 12. Nb5 {[%clk 0:02:58]}  d5 {[%clk 0:02:54]} 13. O-O {[%clk 0:02:57]}  O-O {[%clk 0:02:54]} 14. Bd3 {[%clk 0:02:47]}  f5 {[%clk 0:02:54]} 15. c3 {[%clk 0:02:38]}  bxc3 {[%clk 0:02:51]} 16. bxc3 {[%clk 0:02:39]}  Bd7 {[%clk 0:02:48]} 17. Be3 {[%clk 0:02:37]}  Rf7 {[%clk 0:02:32]} 18. Qe2 {[%clk 0:02:05]}  Qf8 {[%clk 0:02:29]} 19. Rab1 {[%clk 0:02:02]}  Bf6 {[%clk 0:02:21]} 20. Nd4 {[%clk 0:01:55]}  Nxd4 {[%clk 0:01:54]} 21. Bxd4 {[%clk 0:01:54]}  Bxd4+ {[%clk 0:01:45]} 22. cxd4 {[%clk 0:01:55]}  Qg7 {[%clk 0:01:45]} 23. Rb4 {[%clk 0:01:39]}  Qf6 {[%clk 0:01:44]} 24. Kh1 {[%clk 0:01:37]}  Bc6 {[%clk 0:01:43]} 25. Rf3 {[%clk 0:01:28]}  Kh8 {[%clk 0:01:42]} 26. Re3 {[%clk 0:01:26]}  Re8 {[%clk 0:01:32]} 27. Re5 {[%clk 0:01:10]}  Qh6 {[%clk 0:01:29]} 28. Qe3 {[%clk 0:01:05]}  Rf6 {[%clk 0:01:19]} 29. Bb5 {[%clk 0:01:00]}  Rg8 {[%clk 0:01:16]} 30. Bxc6 {[%clk 0:00:41]}  bxc6 {[%clk 0:01:17]} 31. Rb2 {[%clk 0:00:41]}  Qh5 {[%clk 0:01:13]} 32. Re2 {[%clk 0:00:28]}  Rh6 {[%clk 0:01:13]} 33. h3 {[%clk 0:00:28]}  Rgg6 {[%clk 0:01:04]} 34. Kh2 {[%clk 0:00:28]}  Qh4 {[%clk 0:00:50]} 35. Rc2 {[%clk 0:00:28]}  Rg8 {[%clk 0:00:44]} 36. Qf2 {[%clk 0:00:15]}  Qxf2 {[%clk 0:00:33]} 37. Rxf2 {[%clk 0:00:16]}  Ra8 {[%clk 0:00:33]} 38. Rfe2 {[%clk 0:00:16]}  Kg7 {[%clk 0:00:25]} 39. Rxe6 {[%clk 0:00:15]}  Rxe6 {[%clk 0:00:25]} 40. Rxe6 {[%clk 0:00:16]}  Rxa2 {[%clk 0:00:24]} 41. Rxc6 {[%clk 0:00:14]}  Ra4 {[%clk 0:00:23]} 42. g4 {[%clk 0:00:11]}  Rxd4 {[%clk 0:00:23]} 43. Kg3 {[%clk 0:00:12]}  Rd3+ {[%clk 0:00:20]} 44. Kh4 {[%clk 0:00:12]}  fxg4 {[%clk 0:00:13]} 45. hxg4 {[%clk 0:00:12]}  h6 {[%clk 0:00:14]} 46. f5 {[%clk 0:00:06]}  Rd1 {[%clk 0:00:14]} 47. Kg3 {[%clk 0:00:05]}  Rd3+ {[%clk 0:00:13]} 48. Kf4 {[%clk 0:00:04]}  Rd4+ {[%clk 0:00:13]} 49. Kg3 {[%clk 0:00:04]}  Rd3+ {[%clk 0:00:13]} 50. Kh4 {[%clk 0:00:04]}  Rd1 {[%clk 0:00:14]} 51. Rg6+ {[%clk 0:00:04]}  Kh7 {[%clk 0:00:14]} 52. Rd6 {[%clk 0:00:05]}  Kg7 {[%clk 0:00:12]} 53. Kg3 {[%clk 0:00:04]}  Rd3+ {[%clk 0:00:13]} 54. Kf4 {[%clk 0:00:03]}  Rd4+ {[%clk 0:00:13]} 55. Kf3 {[%clk 0:00:04]}  Rd3+ {[%clk 0:00:13]} 56. Kf4 {[%clk 0:00:02]}  Rd4+ {[%clk 0:00:13]} 57. Ke5 {[%clk 0:00:02]}  Re4+ {[%clk 0:00:13]} 58. Kxd5 {[%clk 0:00:01]}  Rxg4 {[%clk 0:00:14]} 59. Ke5 {[%clk 0:00:02]}  h5 {[%clk 0:00:14]} 60. Rd7+ {[%clk 0:00:03]}  Kh6 {[%clk 0:00:14]} 61. f6 {[%clk 0:00:03]}  Rg1 {[%clk 0:00:11]} 62. Rd8 {[%clk 0:00:03]}  Re1+ {[%clk 0:00:08]} 63. Kf5 {[%clk 0:00:03]}  Rf1+ {[%clk 0:00:08]} 64. Ke6 {[%clk 0:00:04]}  h4 {[%clk 0:00:09]} 65. f7 {[%clk 0:00:04]}  Kh5 {[%clk 0:00:08]} 66. f8=Q {[%clk 0:00:04]}  Rxf8 {[%clk 0:00:08]} 67. Rxf8 {[%clk 0:00:04]}  Kg4 {[%clk 0:00:09]} 68. Ke5 {[%clk 0:00:05]}  h3 {[%clk 0:00:08]} 69. Ke4 {[%clk 0:00:05]}  Kg3 {[%clk 0:00:07]} 70. Rg8+ {[%clk 0:00:05]}  Kf2 {[%clk 0:00:07]} 71. Rh8 {[%clk 0:00:03]}  Kg2 {[%clk 0:00:07]} 72. Ke3 {[%clk 0:00:03]}  h2 {[%clk 0:00:08]} 73. Rg8+ {[%clk 0:00:03]}  Kf1 {[%clk 0:00:08]} 74. Rh8 {[%clk 0:00:04]}  Kg2 {[%clk 0:00:09]} 75. Rxh2+ {[%clk 0:00:04]}  Kxh2 {[%clk 0:00:09]} 1/2-1/2

[Event "January 9 Early 2024"]
[Site "https://www.chess.com"]
[Date "2024.01.11"]
[Round "8"]
[White "Murzin, Volodar"]
[Black "Ozer, Omer Faruk"]
[Result "1-0"]
[Board "222"]
[TimeControl "180+1"]
[WhiteFideId "44155573"]
[BlackFideId "6354564"]
[WhiteElo "2949"]
[BlackElo "2754"]
[WhiteTeam "FID"]
[BlackTeam "TUR"]
[WhiteClock "0:00:09"]
[BlackClock "0:00:01"]

1. d4 {[%clk 0:03:00]}  Nf6 {[%clk 0:02:59]} 2. Nf3 {[%clk 0:03:01]}  e6 {[%clk 0:02:58]} 3. Bf4 {[%clk 0:03:00]}  g6 {[%clk 0:02:52]} 4. Nbd2 {[%clk 0:02:55]}  Bg7 {[%clk 0:02:52]} 5. e4 {[%clk 0:02:55]}  d6 {[%clk 0:02:52]} 6. c3 {[%clk 0:02:55]}  O-O {[%clk 0:02:51]} 7. Be2 {[%clk 0:02:54]}  b6 {[%clk 0:02:48]} 8. O-O {[%clk 0:02:54]}  Bb7 {[%clk 0:02:48]} 9. Qc2 {[%clk 0:02:55]}  Nbd7 {[%clk 0:02:47]} 10. a4 {[%clk 0:02:55]}  a6 {[%clk 0:02:44]} 11. h3 {[%clk 0:02:55]}  Qe7 {[%clk 0:02:42]} 12. Rfe1 {[%clk 0:02:53]}  e5 {[%clk 0:02:40]} 13. Bh2 {[%clk 0:02:52]}  Nh5 {[%clk 0:02:38]} 14. Bc4 {[%clk 0:02:40]}  Bh6 {[%clk 0:02:36]} 15. Bd5 {[%clk 0:02:32]}  c6 {[%clk 0:02:34]} 16. Ba2 {[%clk 0:02:32]}  Bf4 {[%clk 0:02:29]} 17. Nc4 {[%clk 0:02:22]}  Ra7 {[%clk 0:02:02]} 18. dxe5 {[%clk 0:02:17]}  Nxe5 {[%clk 0:02:01]} 19. Nfxe5 {[%clk 0:02:13]}  dxe5 {[%clk 0:02:01]} 20. Nxb6 {[%clk 0:02:12]}  Kg7 {[%clk 0:01:38]} 21. Rad1 {[%clk 0:02:09]}  Bc8 {[%clk 0:01:37]} 22. Nxc8 {[%clk 0:01:55]}  Rxc8 {[%clk 0:01:38]} 23. a5 {[%clk 0:01:56]}  Rb7 {[%clk 0:01:26]} 24. Bc4 {[%clk 0:01:53]}  Ra8 {[%clk 0:01:15]} 25. b4 {[%clk 0:01:46]}  Rc7 {[%clk 0:01:15]} 26. g3 {[%clk 0:01:14]}  Bh6 {[%clk 0:01:12]} 27. Qd3 {[%clk 0:01:10]}  c5 {[%clk 0:01:09]} 28. Bd5 {[%clk 0:01:08]}  Rb8 {[%clk 0:00:56]} 29. Qxa6 {[%clk 0:00:57]}  cxb4 {[%clk 0:00:56]} 30. cxb4 {[%clk 0:00:55]}  Rxb4 {[%clk 0:00:57]} 31. Qd3 {[%clk 0:00:50]}  Rb2 {[%clk 0:00:46]} 32. Re2 {[%clk 0:00:39]}  Qb4 {[%clk 0:00:42]} 33. a6 {[%clk 0:00:34]}  Rc3 {[%clk 0:00:30]} 34. Rxb2 {[%clk 0:00:27]}  Qxb2 {[%clk 0:00:27]} 35. Qb1 {[%clk 0:00:20]}  Qe2 {[%clk 0:00:13]} 36. a7 {[%clk 0:00:15]}  Be3 {[%clk 0:00:13]} 37. Rf1 {[%clk 0:00:09]}  Bxa7 {[%clk 0:00:12]} 38. Qb7 {[%clk 0:00:10]}  Nxg3 {[%clk 0:00:05]} 39. Qxf7+ {[%clk 0:00:09]}  Kh6 {[%clk 0:00:05]} 40. Qf8+ {[%clk 0:00:07]}  Kh5 {[%clk 0:00:05]} 41. Ra1 {[%clk 0:00:05]}  Rf3 {[%clk 0:00:03]} 42. Qxf3+ {[%clk 0:00:03]}  Qxf3 {[%clk 0:00:03]} 43. Rxa7 {[%clk 0:00:04]}  Ne2+ {[%clk 0:00:01]} 44. Kf1 {[%clk 0:00:04]}  Nf4 {[%clk 0:00:02]} 45. Rxh7+ {[%clk 0:00:03]}  Kg5 {[%clk 0:00:02]} 46. Bxf4+ {[%clk 0:00:02]}  Qxf4 {[%clk 0:00:02]} 47. Kg2 {[%clk 0:00:02]}  Qd2 {[%clk 0:00:02]} 48. Rf7 {[%clk 0:00:02]}  Qd4 {[%clk 0:00:02]} 49. Rf3 {[%clk 0:00:03]}  Kh6 {[%clk 0:00:02]} 50. Rg3 {[%clk 0:00:04]}  g5 {[%clk 0:00:02]} 51. Rg4 {[%clk 0:00:04]}  Qd2 {[%clk 0:00:01]} 52. Be6 {[%clk 0:00:05]}  Qd4 {[%clk 0:00:01]} 53. Bf5 {[%clk 0:00:05]}  Qd2 {[%clk 0:00:01]} 54. Rg3 {[%clk 0:00:06]}  Qf4 {[%clk 0:00:02]} 55. Rb3 {[%clk 0:00:06]}  Qd2 {[%clk 0:00:02]} 56. Rb6+ {[%clk 0:00:06]}  Kh5 {[%clk 0:00:02]} 57. Rb7 {[%clk 0:00:06]}  g4 {[%clk 0:00:01]} 58. Rh7+ {[%clk 0:00:06]}  Kg5 {[%clk 0:00:01]} 59. Rg7+ {[%clk 0:00:06]}  Kf6 {[%clk 0:00:02]} 60. Rg6+ {[%clk 0:00:06]}  Kf7 {[%clk 0:00:02]} 61. Rxg4 {[%clk 0:00:06]}  Qd1 {[%clk 0:00:02]} 62. h4 {[%clk 0:00:06]}  Kf6 {[%clk 0:00:02]} 63. h5 {[%clk 0:00:07]}  Qd2 {[%clk 0:00:02]} 64. Rg6+ {[%clk 0:00:07]}  Kf7 {[%clk 0:00:02]} 65. h6 {[%clk 0:00:08]}  Qf4 {[%clk 0:00:01]} 66. h7 {[%clk 0:00:08]}  Qh4 {[%clk 0:00:01]} 67. Rg8 {[%clk 0:00:09]} 1-0

[Event "January 9 Early 2024"]
[Site "https://www.chess.com"]
[Date "2024.01.11"]
[Round "8"]
[White "Santeramo, Alessia Carmen"]
[Black "Nikologorsky, Matfei"]
[Result "1-0"]
[Board "224"]
[TimeControl "180+1"]
[WhiteFideId "850810"]
[BlackFideId "24102474"]
[WhiteElo "2329"]
[BlackElo "2453"]
[WhiteTeam "ITA"]
[BlackTeam "FID"]
[WhiteClock "0:00:14"]
[BlackClock "0:00:25"]

1. e4 {[%clk 0:03:00]}  c5 {[%clk 0:02:57]} 2. Nf3 {[%clk 0:02:59]}  e6 {[%clk 0:02:53]} 3. b3 {[%clk 0:02:54]}  Nf6 {[%clk 0:02:48]} 4. e5 {[%clk 0:02:46]}  Nd5 {[%clk 0:02:48]} 5. c4 {[%clk 0:02:45]}  Nc7 {[%clk 0:02:42]} 6. d4 {[%clk 0:02:44]}  cxd4 {[%clk 0:02:42]} 7. Qxd4 {[%clk 0:02:44]}  Nc6 {[%clk 0:02:41]} 8. Qe4 {[%clk 0:02:41]}  d5 {[%clk 0:02:38]} 9. exd6 {[%clk 0:02:39]}  Bxd6 {[%clk 0:02:37]} 10. Bd3 {[%clk 0:02:37]}  Nb4 {[%clk 0:02:28]} 11. Nc3 {[%clk 0:02:27]}  Nxd3+ {[%clk 0:02:22]} 12. Qxd3 {[%clk 0:02:27]}  b6 {[%clk 0:02:10]} 13. Bb2 {[%clk 0:02:26]}  Bb7 {[%clk 0:02:06]} 14. O-O-O {[%clk 0:02:26]}  Bf4+ {[%clk 0:01:59]} 15. Kb1 {[%clk 0:02:20]}  Qxd3+ {[%clk 0:01:51]} 16. Rxd3 {[%clk 0:02:20]}  Na6 {[%clk 0:01:52]} 17. Re1 {[%clk 0:01:59]}  Nc5 {[%clk 0:01:41]} 18. Rd4 {[%clk 0:01:19]}  Bxf3 {[%clk 0:00:56]} 19. gxf3 {[%clk 0:00:30]}  Bxh2 {[%clk 0:00:48]} 20. f4 {[%clk 0:00:28]}  O-O {[%clk 0:00:47]} 21. Rh1 {[%clk 0:00:27]}  e5 {[%clk 0:00:47]} 22. fxe5 {[%clk 0:00:18]}  Bxe5 {[%clk 0:00:47]} 23. Rdh4 {[%clk 0:00:18]}  h6 {[%clk 0:00:44]} 24. Nd5 {[%clk 0:00:18]}  Bxb2 {[%clk 0:00:44]} 25. Kxb2 {[%clk 0:00:18]}  Rad8 {[%clk 0:00:42]} 26. Kc3 {[%clk 0:00:12]}  Rfe8 {[%clk 0:00:41]} 27. Rg4 {[%clk 0:00:12]}  Kh7 {[%clk 0:00:38]} 28. Rhg1 {[%clk 0:00:11]}  Ne4+ {[%clk 0:00:29]} 29. Kb2 {[%clk 0:00:10]}  g5 {[%clk 0:00:23]} 30. Rxe4 {[%clk 0:00:09]}  Rxe4 {[%clk 0:00:22]} 31. Nf6+ {[%clk 0:00:09]}  Kg6 {[%clk 0:00:23]} 32. Nxe4 {[%clk 0:00:10]}  f5 {[%clk 0:00:23]} 33. Nc3 {[%clk 0:00:09]}  Rd2+ {[%clk 0:00:24]} 34. Ka3 {[%clk 0:00:09]}  Rxf2 {[%clk 0:00:24]} 35. Nd5 {[%clk 0:00:07]}  f4 {[%clk 0:00:23]} 36. Re1 {[%clk 0:00:04]}  g4 {[%clk 0:00:23]} 37. Re4 {[%clk 0:00:03]}  Kg5 {[%clk 0:00:22]} 38. Re5+ {[%clk 0:00:02]}  Kh4 {[%clk 0:00:22]} 39. Re4 {[%clk 0:00:03]}  Kg3 {[%clk 0:00:22]} 40. Re6 {[%clk 0:00:02]}  h5 {[%clk 0:00:21]} 41. Rg6 {[%clk 0:00:03]}  Re2 {[%clk 0:00:19]} 42. Nf6 {[%clk 0:00:04]}  f3 {[%clk 0:00:18]} 43. Nxh5+ {[%clk 0:00:02]}  Kh3 {[%clk 0:00:18]} 44. Nf6 {[%clk 0:00:02]}  g3 {[%clk 0:00:18]} 45. Rh6+ {[%clk 0:00:02]}  Kg2 {[%clk 0:00:18]} 46. Rg6 {[%clk 0:00:03]}  f2 {[%clk 0:00:18]} 47. Nh5 {[%clk 0:00:03]}  Re4 {[%clk 0:00:18]} 48. Rxg3+ {[%clk 0:00:03]}  Kh2 {[%clk 0:00:18]} 49. Rf3 {[%clk 0:00:04]}  Kg2 {[%clk 0:00:18]} 50. Rf7 {[%clk 0:00:04]}  Re3 {[%clk 0:00:18]} 51. Nf4+ {[%clk 0:00:04]}  Kg3 {[%clk 0:00:16]} 52. Nd5 {[%clk 0:00:04]}  Rf3 {[%clk 0:00:16]} 53. Rg7+ {[%clk 0:00:03]}  Kh2 {[%clk 0:00:15]} 54. Rh7+ {[%clk 0:00:03]}  Kg2 {[%clk 0:00:15]} 55. Rg7+ {[%clk 0:00:04]}  Rg3 {[%clk 0:00:15]} 56. Rxg3+ {[%clk 0:00:04]}  Kxg3 {[%clk 0:00:16]} 57. Ne3 {[%clk 0:00:04]}  Kf3 {[%clk 0:00:17]} 58. Nf1 {[%clk 0:00:05]}  Ke2 {[%clk 0:00:17]} 59. Nh2 {[%clk 0:00:05]}  Ke3 {[%clk 0:00:17]} 60. Kb4 {[%clk 0:00:04]}  Kd4 {[%clk 0:00:18]} 61. Nf1 {[%clk 0:00:04]}  Kd3 {[%clk 0:00:18]} 62. a4 {[%clk 0:00:03]}  Ke2 {[%clk 0:00:17]} 63. Nh2 {[%clk 0:00:03]}  Kd3 {[%clk 0:00:18]} 64. Nf1 {[%clk 0:00:04]}  Kd4 {[%clk 0:00:18]} 65. a5 {[%clk 0:00:03]}  Kd3 {[%clk 0:00:16]} 66. axb6 {[%clk 0:00:03]}  axb6 {[%clk 0:00:17]} 67. Kb5 {[%clk 0:00:04]}  Kc3 {[%clk 0:00:17]} 68. Kxb6 {[%clk 0:00:04]}  Kxb3 {[%clk 0:00:18]} 69. c5 {[%clk 0:00:05]}  Kc3 {[%clk 0:00:19]} 70. c6 {[%clk 0:00:06]}  Kd3 {[%clk 0:00:19]} 71. c7 {[%clk 0:00:07]}  Ke2 {[%clk 0:00:20]} 72. Nh2 {[%clk 0:00:07]}  Ke3 {[%clk 0:00:20]} 73. c8=Q {[%clk 0:00:08]}  Kf4 {[%clk 0:00:21]} 74. Qc2 {[%clk 0:00:08]}  Kg3 {[%clk 0:00:22]} 75. Qe2 {[%clk 0:00:08]}  Kg2 {[%clk 0:00:22]} 76. Qf1+ {[%clk 0:00:08]}  Kg3 {[%clk 0:00:20]} 77. Kc5 {[%clk 0:00:09]}  Kxh2 {[%clk 0:00:20]} 78. Qxf2+ {[%clk 0:00:09]}  Kh1 {[%clk 0:00:21]} 79. Qe2 {[%clk 0:00:09]}  Kg1 {[%clk 0:00:21]} 80. Kd4 {[%clk 0:00:10]}  Kh1 {[%clk 0:00:22]} 81. Ke4 {[%clk 0:00:11]}  Kg1 {[%clk 0:00:23]} 82. Kf3 {[%clk 0:00:12]}  Kh1 {[%clk 0:00:24]} 83. Kg3 {[%clk 0:00:13]}  Kg1 {[%clk 0:00:25]} 84. Qg2# {[%clk 0:00:14]} 1-0